bitfinex-derivatives/quotes_BTCF0:USTF0_20210707
["timestamp","ask_amount","ask_price","bid_price","bid_amount"]
[1625698887008,3.65283657,34102.0,34101.0,2.9185511]
[1625698888587,2.46789651,34102.0,34101.0,2.9185511]
[1625698891511,3.6527203,34102.0,34101.0,2.9185511]
[1625698893239,4.16137264,34102.0,34101.0,3.43565373]
[1625698893465,4.16137264,34102.0,34101.0,2.23754222]
[1625698895939,5.51622378,34102.0,34101.0,1.21057882]
[1625698896091,5.51622378,34102.0,34101.0,0.5224264]
[1625698896313,5.51622378,34102.0,34101.0,0.86706897]
[1625698897066,5.51622378,34102.0,34101.0,0.34996634]
[1625698897592,5.51622378,34102.0,34101.0,0.00532377]
[1625698898721,5.51622378,34102.0,34101.0,0.34984369]
[1625698898945,5.51622378,34102.0,34101.0,0.00532377]
[1625698899244,5.51622378,34102.0,34101.0,0.34984451]
[1625698899394,5.51622378,34102.0,34101.0,0.00532377]
[1625698900222,5.51622378,34102.0,34100.0,0.00532124]
[1625698900672,4.73636492,34101.0,34099.0,0.86105154]
[1625698900970,4.7361426,34100.0,34099.0,0.86105154]
[1625698901273,4.97671804,34100.0,34099.0,0.86105154]
[1625698901422,3.62360692,34100.0,34099.0,0.34441502]
[1625698901571,3.62360692,34100.0,34099.0,0.34973631]
[1625698902322,4.97571939,34100.0,34099.0,0.00532129]
[1625698902923,4.97571939,34100.0,34098.0,0.00532143]
[1625698903073,4.73158006,34099.0,34098.0,0.00532143]
[1625698903223,4.73158006,34099.0,34097.0,0.86176444]
[1625698903373,3.37977245,34099.0,34097.0,0.34530869]
[1625698903524,1.35121501,34099.0,34098.0,0.00532151]
[1625698903675,5.76121501,34099.0,34098.0,0.00532151]
[1625698903827,9.13898815,34099.0,34098.0,0.00532151]
[1625698908185,9.13898815,34099.0,34093.0,0.31842836]
[1625698908489,4.7042209,34094.0,34089.0,0.86218225]
[1625698908636,4.9667409,34094.0,34089.0,0.86218225]
[1625698908786,4.70024062,34090.0,34089.0,0.002]
[1625698909236,4.70024062,34090.0,34089.0,0.00731405]
[1625698909386,5.42196694,34090.0,34089.0,0.00731405]
[1625698909538,4.07911298,34090.0,34089.0,0.002]
[1625698909687,5.42049417,34090.0,34089.0,0.002]
[1625698910590,5.42049417,34090.0,34084.0,0.003]
[1625698910591,5.42049417,34090.0,34081.0,0.02076721]
[1625698910740,5.42049417,34090.0,34079.0,0.53553439]
[1625698910892,5.42049417,34090.0,34079.0,0.004]
[1625698910893,3.755,34082.0,34079.0,0.004]
[1625698911041,4.09443,34082.0,34079.0,0.004]
[1625698911192,4.09443,34082.0,34080.0,0.00531475]
[1625698911343,0.72172632,34081.0,34080.0,0.00531475]
[1625698911644,0.72172632,34081.0,34079.0,0.00531486]
[1625698912994,0.72172632,34081.0,34078.0,0.004]
[1625698913369,0.24057544,34079.0,34078.0,0.004]
[1625698913819,0.24057544,34079.0,34078.0,0.00932119]
[1625698914122,0.24057544,34079.0,34078.0,0.004]
[1625698914270,0.24057544,34079.0,34078.0,0.00932122]
[1625698914571,0.24057544,34079.0,34078.0,0.004]
[1625698917349,0.24057544,34079.0,34073.0,1.25936665]
[1625698917499,0.24057544,34079.0,34073.0,1.20236665]
[1625698917799,0.24057544,34079.0,34074.0,0.00532134]
[1625698918175,0.24057544,34079.0,34074.0,1.20518496]
[1625698918476,0.24057544,34079.0,34078.0,1.19982382]
[1625698918626,0.24057544,34079.0,34078.0,1.45516382]
[1625698918927,0.24057544,34079.0,34078.0,1.4604843]
[1625698919674,0.24057544,34079.0,34078.0,0.26066048]
[1625698920275,0.24057544,34079.0,34078.0,1.46025156]
[1625698924930,0.24057544,34079.0,34078.0,2.83104416]
[1625698925755,0.24057544,34079.0,34078.0,1.46025156]
[1625698926429,0.24057544,34079.0,34078.0,2.83114885]
[1625698927706,0.001,34080.0,34078.0,2.83114885]
[1625698928006,0.001,34080.0,34079.0,1.19953565]
[1625698928156,0.24157544,34080.0,34079.0,1.44543126]
[1625698928682,0.24157544,34080.0,34079.0,5.24893126]
[1625698933413,0.24157544,34080.0,34079.0,1.44543126]
[1625698933562,0.52207544,34080.0,34079.0,1.44543126]
[1625698933863,0.52207544,34080.0,34079.0,0.24589561]
[1625698934765,0.52207544,34080.0,34079.0,0.09105879]
[1625698935070,0.52207544,34080.0,34079.0,0.00532017]
[1625698935365,0.52207544,34080.0,34078.0,0.00531146]
[1625698936268,0.76265088,34080.0,34078.0,0.00531146]
[1625698936719,0.76265088,34080.0,34077.0,0.00531159]
[1625698937546,0.76265088,34080.0,34077.0,0.09107944]
[1625698938075,0.76265088,34080.0,34078.0,0.00531145]
[1625698938371,0.76165088,34080.0,34078.0,0.09107899]
[1625698938825,0.76165088,34080.0,34079.0,0.00531145]
[1625698939124,0.84552686,34080.0,34078.0,0.00531152]
[1625698939274,0.76165088,34080.0,34078.0,0.00531152]
[1625698939425,0.76165088,34080.0,34077.0,0.09109982]
[1625698939727,0.76165088,34080.0,34079.0,0.00531156]
[1625698939877,0.76165088,34080.0,34078.0,0.00531156]
[1625698941530,0.84557959,34080.0,34078.0,0.00531156]
[1625698943328,0.84557959,34080.0,34077.0,0.09112236]
[1625698943632,0.84557959,34080.0,34079.0,0.00531122]
[1625698943781,0.76165088,34080.0,34078.0,0.00531122]
[1625698944158,0.76165088,34080.0,34077.0,0.00531119]
[1625698944310,0.24057544,34078.0,34076.0,0.08581131]
[1625698944460,0.32449107,34078.0,34075.0,0.08580967]
[1625698944608,0.32449107,34078.0,34077.0,0.00531141]
[1625698944909,0.32449107,34078.0,34076.0,0.00531143]
[1625698945209,0.32449107,34078.0,34077.0,0.00531149]
[1625698945360,0.24057544,34078.0,34077.0,0.00531149]
[1625698945659,0.24057544,34078.0,34074.0,0.08679892]
[1625698945660,0.24057544,34078.0,34075.0,0.00531156]
[1625698945960,0.08394225,34076.0,34075.0,0.00531156]
[1625698946110,0.08395044,34077.0,34075.0,0.00531156]
[1625698946259,0.24057544,34076.0,34075.0,0.00531156]
[1625698946559,0.32453118,34076.0,34075.0,0.00531156]
[1625698946860,0.24057544,34076.0,34075.0,0.00531156]
[1625698947459,0.32453376,34076.0,34075.0,0.00531156]
[1625698947760,0.24057544,34076.0,34075.0,0.00531156]
[1625698954367,0.4083514,34076.0,34075.0,0.00531156]
[1625698954518,0.49233096,34076.0,34075.0,0.00531156]
[1625698955119,0.324555,34076.0,34075.0,0.00531156]
[1625698955572,0.49244715,34076.0,34075.0,0.2629803]
[1625698955874,0.49244715,34076.0,34075.0,0.5751303]
[1625698956022,0.24057544,34076.0,34075.0,1.34806242]
[1625698956322,0.24057544,34076.0,34075.0,4.16481468]
[1625698959323,0.24057544,34076.0,34075.0,4.15950312]
[1625698959624,0.24057544,34076.0,34075.0,4.16481238]
[1625698964577,0.08422097,34080.0,34076.0,4.4659]
[1625698964877,0.08422097,34080.0,34079.0,2.23710409]
[1625698965177,0.25274387,34081.0,34079.0,2.24241336]
[1625698965478,0.25274387,34081.0,34080.0,2.2432334]
[1625698965627,0.08435774,34081.0,34080.0,2.2432334]
[1625698965929,0.002,34082.0,34080.0,3.62032553]
[1625698966232,0.002,34082.0,34081.0,3.61482587]
[1625698966379,0.002,34082.0,34081.0,3.86071012]
[1625698967279,0.08646014,34082.0,34081.0,2.4836336]
[1625698967582,0.25527643,34082.0,34081.0,3.86129735]
[1625698968482,0.25527643,34082.0,34081.0,4.55012641]
[1625698970660,0.17081629,34082.0,34081.0,3.17246266]
[1625698970962,0.6763423,34082.0,34081.0,1.9675207]
[1625698971110,0.6763423,34082.0,34081.0,3.17310031]
[1625698971412,0.6763423,34082.0,34081.0,1.9675207]
[1625698973587,1.68711699,34082.0,34081.0,1.9675207]
[1625698974188,1.68711699,34082.0,34081.0,0.93471331]
[1625698974863,1.68711699,34082.0,34081.0,1.96813867]
[1625698975088,1.68711699,34082.0,34081.0,0.93471331]
[1625698976816,2.86611332,34082.0,34081.0,0.93471331]
[1625698977417,2.86411332,34082.0,34081.0,0.93471331]
[1625698977719,2.86411332,34082.0,34081.0,0.24588425]
[1625698978922,2.86411332,34082.0,34081.0,0.93484896]
[1625698982001,1.68511699,34082.0,34081.0,0.93484896]
[1625698982306,1.68511699,34082.0,34081.0,1.96839908]
[1625698983053,1.68511699,34082.0,34081.0,0.93484896]
[1625698983500,2.86422815,34082.0,34081.0,0.93484896]
[1625698984252,2.86422815,34082.0,34081.0,0.24588425]
[1625698984704,1.68511699,34082.0,34081.0,0.93498794]
[1625698985003,1.68511699,34082.0,34081.0,1.96869916]
[1625698986580,2.8642621,34082.0,34081.0,1.96869916]
[1625698987033,1.68511699,34082.0,34081.0,1.96869916]
[1625698987332,2.86436747,34082.0,34081.0,1.96869916]
[1625698988009,1.68511699,34082.0,34081.0,3.34714809]
[1625698988158,0.25331902,34082.0,34081.0,4.55329091]
[1625698988316,0.001,34083.0,34081.0,4.55329091]
[1625698988457,0.001,34083.0,34082.0,0.24057544]
[1625698988608,0.001,34083.0,34082.0,4.55320081]
[1625698988758,0.001,34083.0,34082.0,6.10393857]
[1625698992590,0.001,34083.0,34082.0,4.55320081]
[1625698993415,0.001,34083.0,34082.0,6.10350942]
[1625698993717,0.001,34083.0,34082.0,4.55320081]
[1625698993869,0.001,34083.0,34082.0,6.10325098]
[1625698995291,0.001,34084.0,34082.0,6.10325098]
[1625698995443,0.001,34084.0,34082.0,4.55320081]
[1625698995591,0.001,34084.0,34083.0,4.31008341]
[1625698996493,0.001,34084.0,34083.0,4.55065885]
[1625698997919,0.08546458,34084.0,34083.0,4.55065885]
[1625698998218,0.25420764,34084.0,34083.0,4.55065885]
[1625698998368,0.25420764,34084.0,34083.0,9.46055885]
[1625698998519,0.25420764,34084.0,34083.0,8.08303187]
[1625698999494,0.67505328,34084.0,34083.0,6.87769576]
[1625698999794,1.68580103,34084.0,34083.0,6.87769576]
[1625699000322,1.68580103,34084.0,34083.0,5.84455053]
[1625699000472,2.86448573,34084.0,34083.0,5.84455053]
[1625699000772,4.71558286,34084.0,34083.0,5.15578704]
[1625699000921,5.03326286,34084.0,34080.0,0.68883956]
[1625699001070,0.5,34083.0,34077.0,1.20421264]
[1625699001299,0.5,34083.0,34043.0,0.3229]
[1625699001300,6.70878767,34081.0,34072.0,0.002]
[1625699001447,0.5,34080.0,34068.0,1.03334958]
[1625699001597,5.0227586,34073.0,34067.0,0.003]
[1625699001748,0.2336,34068.0,34067.0,0.003]
[1625699001903,0.2336,34068.0,34054.0,1.5502959]
[1625699001904,7.41276516,34068.0,34050.0,1.03264473]
[1625699002048,7.4252775,34068.0,34050.0,1.03264473]
[1625699002199,7.4252775,34068.0,34049.0,2.16645218]
[1625699002200,5.00507958,34063.0,34049.0,1.99438673]
[1625699002347,5.78987958,34063.0,34049.0,1.99438673]
[1625699002497,5.78987958,34063.0,34049.0,0.9617]
[1625699002647,9.4296535,34063.0,34049.0,0.9617]
[1625699002799,9.89738449,34063.0,34049.0,0.9617]
[1625699002946,6.64298296,34050.0,34049.0,0.9617]
[1625699003097,6.95723296,34050.0,34049.0,0.9617]
[1625699003249,6.95723296,34050.0,34033.0,0.76804795]
[1625699003399,0.9961482,34038.0,34033.0,0.76246795]
[1625699003550,1.3379482,34038.0,34033.0,0.76246795]
[1625699003698,1.3379482,34038.0,34031.0,1.2052226]
[1625699003699,0.3418,34038.0,34024.0,1.20090798]
[1625699003999,0.3418,34038.0,34026.0,1.20086529]
[1625699004151,0.3418,34038.0,34027.0,1.2578259]
[1625699004450,0.3418,34038.0,34027.0,1.2008259]
[1625699004599,0.17411463,34028.0,34027.0,0.24057544]
[1625699004751,0.44618463,34028.0,34027.0,0.24057544]
[1625699005800,0.24057544,34035.0,34027.0,0.24057544]
[1625699006251,0.24057544,34035.0,34027.0,1.43835435]
[1625699006476,1.1567107,34051.0,34034.0,4.9931]
[1625699006626,0.24057544,34043.0,34042.0,0.24057544]
[1625699006775,0.18357544,34043.0,34042.0,0.58320544]
[1625699007378,0.18557544,34043.0,34042.0,0.58320544]
[1625699007526,0.24257544,34043.0,34042.0,0.58320544]
[1625699007826,0.24257544,34043.0,34042.0,0.24057544]
[1625699015413,0.24057544,34047.0,34042.0,0.24057544]
[1625699016313,0.001,34043.0,34042.0,0.24057544]
[1625699016614,0.001,34043.0,34042.0,0.48115088]
[1625699029078,0.001,34043.0,34042.0,0.48645739]
[1625699039671,0.28607,34043.0,34042.0,0.48645739]
[1625699040946,0.76722088,34043.0,34042.0,0.48645739]
[1625699043052,0.76722088,34043.0,34042.0,5.739e-05]
[1625699043502,0.76722088,34043.0,34037.0,0.00530199]
[1625699045004,0.48115088,34038.0,34037.0,0.00530199]
[1625699046506,0.98115088,34038.0,34037.0,0.00530199]
[1625699046809,0.48115088,34038.0,34036.0,0.001]
[1625699046956,0.24057544,34037.0,34036.0,0.001]
[1625699047407,0.74057544,34037.0,34027.0,0.8586]
[1625699047856,0.74057544,34037.0,34028.0,0.00530632]
[1625699048159,4.8623,34029.0,34027.0,0.8586]
[1625699048305,5.59009,34029.0,34011.0,0.24057544]
[1625699048607,5.59009,34029.0,34012.0,0.0053]
[1625699048906,0.48115088,34013.0,34012.0,0.0053]
[1625699049056,0.72950088,34013.0,34012.0,0.0053]
[1625699050558,0.72950088,34013.0,34011.0,0.24057544]
[1625699050708,0.48115088,34013.0,34011.0,0.24057544]
[1625699051309,0.48115088,34013.0,34012.0,0.00530066]
[1625699051458,0.48115088,34013.0,34012.0,0.31056066]
[1625699051608,0.48115088,34013.0,34012.0,0.30526]
[1625699052360,0.48115088,34013.0,34012.0,0.31055726]
[1625699052510,0.48115088,34013.0,34012.0,0.00529726]
[1625699052811,0.48115088,34013.0,34011.0,0.24057544]
[1625699057016,0.24057544,34013.0,34012.0,0.24057544]
[1625699057168,0.24057544,34013.0,34012.0,0.56173544]
[1625699057315,0.24057544,34019.0,34012.0,0.56173544]
[1625699057766,0.24057544,34019.0,34014.0,0.3419566]
[1625699058065,0.24057544,34019.0,34012.0,1.58760524]
[1625699058066,0.24057544,34019.0,34015.0,0.34195529]
[1625699058517,0.24057544,34019.0,34016.0,0.34194322]
[1625699058817,0.24057544,34019.0,34017.0,0.34196104]
[1625699058968,0.24057544,34019.0,34014.0,1.02582967]
[1625699058969,0.24057544,34019.0,34018.0,0.24057544]
[1625699059721,0.24057544,34019.0,34018.0,1.2686407]
[1625699060020,0.24057544,34022.0,34018.0,1.2686407]
[1625699060321,0.24057544,34022.0,34021.0,1.02798194]
[1625699060470,0.24057544,34022.0,34021.0,1.24103194]
[1625699061071,0.24057544,34022.0,34021.0,2.16701237]
[1625699061822,0.24057544,34022.0,34021.0,2.17230838]
[1625699062874,0.24057544,34022.0,34021.0,1.13903043]
[1625699063023,0.24057544,34022.0,34021.0,0.45362544]
[1625699063324,0.24057544,34022.0,34021.0,0.79656763]
[1625699063473,0.24057544,34022.0,34021.0,0.45362544]
[1625699063773,0.24057544,34022.0,34021.0,0.79649965]
[1625699064225,0.24057544,34022.0,34021.0,0.45362544]
[1625699065349,0.24157544,34022.0,34021.0,0.45362544]
[1625699065950,0.24157544,34022.0,34021.0,0.45892242]
[1625699066850,0.24157544,34022.0,34021.0,2.17295976]
[1625699067151,0.001,34022.0,34021.0,3.37274773]
[1625699067302,0.001,34022.0,34021.0,4.74389391]
[1625699067455,0.003,34032.0,34021.0,4.74389391]
[1625699067603,0.003,34032.0,34021.0,5.24389391]
[1625699067751,0.003,34032.0,34022.0,0.00529295]
[1625699067901,0.003,34032.0,34031.0,0.68541232]
[1625699068051,0.003,34032.0,34031.0,1.99010301]
[1625699068354,0.003,34032.0,34031.0,1.99539543]
[1625699068652,0.003,34032.0,34031.0,3.19471358]
[1625699068801,0.003,34032.0,34031.0,4.56548722]
[1625699069101,0.003,34032.0,34031.0,5.28721354]
[1625699070980,0.003,34032.0,34031.0,3.9164399]
[1625699071281,0.005,34042.0,34031.0,3.9164399]
[1625699071431,0.003,34032.0,34031.0,2.37435014]
[1625699071730,0.003,34032.0,34031.0,3.91595639]
[1625699071880,0.003,34032.0,34031.0,8.43115639]
[1625699073082,0.003,34032.0,34031.0,9.80181404]
[1625699073532,0.003,34032.0,34031.0,8.43115639]
[1625699075485,0.003,34032.0,34031.0,5.51884874]
[1625699075935,0.003,34032.0,34031.0,7.23208571]
[1625699077285,0.001,34032.0,34031.0,7.23208571]
[1625699078036,0.001,34032.0,34031.0,8.43146822]
[1625699086522,0.001,34032.0,34031.0,5.51884874]
[1625699086673,0.001,34032.0,34031.0,8.43365781]
[1625699088853,0.001,34032.0,34031.0,9.80560986]
[1625699091185,0.001,34032.0,34031.0,10.32015496]
[1625699091633,0.001,34032.0,34031.0,13.36399428]
[1625699091783,0.002,34037.0,34031.0,13.36399428]
[1625699091934,0.002,34037.0,34031.0,13.37264908]
[1625699092084,0.002,34037.0,34032.0,1.0]
[1625699092234,0.002,34037.0,34036.0,1.54361358]
[1625699092385,0.83058645,34051.0,34036.0,4.80235336]
[1625699092386,0.002,34038.0,34036.0,4.80235336]
[1625699092684,0.002,34038.0,34037.0,0.00529207]
[1625699092833,0.002,34038.0,34037.0,4.80750546]
[1625699093133,0.002,34038.0,34037.0,5.28865634]
[1625699095234,0.002,34038.0,34037.0,6.28865634]
[1625699095384,0.001,34039.0,34037.0,6.28865634]
[1625699095534,0.001,34039.0,34037.0,5.28865634]
[1625699095685,0.001,34039.0,34038.0,4.8008268]
[1625699095836,0.001,34039.0,34038.0,5.0376368]
[1625699095985,0.001,34039.0,34038.0,6.54292882]
[1625699096135,0.001,34039.0,34038.0,6.55158247]
[1625699096663,0.001,34039.0,34038.0,8.09453698]
[1625699097264,0.001,34039.0,34038.0,8.33511242]
[1625699098166,0.001,34039.0,34038.0,8.35241724]
[1625699098316,0.001,34039.0,34038.0,7.33511242]
[1625699098615,0.001,34039.0,34038.0,8.36511242]
[1625699099515,0.002,34044.0,34038.0,8.36511242]
[1625699099819,0.002,34044.0,34043.0,1.0]
[1625699099965,0.002,34044.0,34043.0,6.29412942]
[1625699100267,0.002,34044.0,34043.0,4.80807113]
[1625699101242,0.002,34044.0,34043.0,5.28056992]
[1625699101393,0.002,34044.0,34043.0,3.91081866]
[1625699102071,0.002,34044.0,34043.0,1.68497285]
[1625699102371,0.002,34044.0,34043.0,0.82895722]
[1625699102521,0.002,34044.0,34043.0,0.4864405]
[1625699102821,0.002,34044.0,34043.0,0.82896539]
[1625699103197,0.002,34044.0,34043.0,0.4864405]
[1625699104250,0.33182905,34048.0,34043.0,0.4864405]
[1625699104402,0.002,34044.0,34043.0,0.4864405]
[1625699104703,0.002,34044.0,34043.0,0.48115088]
[1625699104929,0.002,34044.0,34043.0,0.48644341]
[1625699107403,0.001,34045.0,34043.0,0.48644341]
[1625699107855,0.001,34045.0,34044.0,0.00529219]
[1625699116341,0.001,34046.0,34044.0,0.00529219]
[1625699116648,0.33502307,34046.0,34044.0,0.00529219]
[1625699117845,0.83603609,34046.0,34044.0,0.00529219]
[1625699118369,0.33401385,34045.0,34044.0,0.00529219]
[1625699118670,0.83489098,34045.0,34044.0,0.00529219]
[1625699118969,1.16891077,34045.0,34044.0,0.00529219]
[1625699119119,0.33424803,34045.0,34044.0,0.00529219]
[1625699119721,0.33424803,34045.0,34043.0,1.34117003]
[1625699119873,0.50228852,34046.0,34044.0,1.20927718]
[1625699119874,0.001,34046.0,34044.0,1.20927718]
[1625699120023,0.001,34046.0,34044.0,1.49686718]
[1625699120172,0.001,34046.0,34045.0,1.20397851]
[1625699120471,0.001,34046.0,34045.0,0.86527422]
[1625699120623,0.001,34046.0,34045.0,0.52128498]
[1625699120926,0.001,34046.0,34045.0,1.20941769]
[1625699122273,0.001,34046.0,34045.0,0.52128498]
[1625699122573,0.001,34046.0,34045.0,1.2094535]
[1625699124302,0.001,34046.0,34045.0,1.4287835]
[1625699124753,0.33596637,34046.0,34045.0,2.46235536]
[1625699125352,0.83747747,34046.0,34045.0,2.46235536]
[1625699125503,1.17236756,34046.0,34045.0,1.4287835]
[1625699126103,2.17677057,34046.0,34045.0,0.52128498]
[1625699126254,2.17677057,34046.0,34045.0,0.3498693]
[1625699126480,2.17677057,34046.0,34045.0,0.00529419]
[1625699126703,2.17677057,34046.0,34045.0,0.86774274]
[1625699126704,3.34949326,34046.0,34045.0,0.86774274]
[1625699127006,3.34949326,34046.0,34045.0,0.35027361]
[1625699127306,4.68920837,34046.0,34045.0,0.00529419]
[1625699127905,2.17677057,34046.0,34045.0,2.24784723]
[1625699128206,4.69023724,34046.0,34045.0,0.35030365]
[1625699128656,0.001,34047.0,34045.0,0.00529419]
[1625699128959,3.35188464,34046.0,34045.0,0.86776862]
[1625699131588,4.69214683,34046.0,34045.0,0.00529419]
[1625699132412,4.69214683,34046.0,34045.0,0.35031488]
[1625699132787,4.69214683,34046.0,34045.0,0.00529419]
[1625699132939,4.69214683,34046.0,34045.0,0.35029851]
[1625699133614,4.69214683,34046.0,34045.0,0.00529419]
[1625699135567,4.69214683,34046.0,34045.0,0.48644507]
[1625699145783,4.69214683,34046.0,34045.0,0.24586963]
[1625699145934,4.91094683,34046.0,34045.0,0.00529419]
[1625699146084,4.91094683,34046.0,34041.0,0.34510693]
[1625699146085,6.42017787,34046.0,34041.0,0.34510693]
[1625699146235,6.42017787,34046.0,34040.0,0.24157544]
[1625699146236,4.69389328,34042.0,34040.0,0.24157544]
[1625699146536,4.69262509,34041.0,34040.0,0.24157544]
[1625699146835,4.69262509,34041.0,34040.0,0.24686277]
[1625699147736,6.68083846,34041.0,34040.0,0.24686277]
[1625699148710,5.17377597,34041.0,34040.0,0.24686277]
[1625699149463,3.83309776,34041.0,34040.0,0.59178586]
[1625699149765,2.41940794,34041.0,34040.0,1.45398533]
[1625699150066,2.41940794,34041.0,34040.0,2.48865616]
[1625699150214,2.41940794,34041.0,34040.0,1.45398533]
[1625699150668,3.59281272,34041.0,34040.0,0.76420101]
[1625699151417,3.59281272,34041.0,34040.0,1.10908891]
[1625699151717,3.59281272,34041.0,34040.0,0.41929929]
[1625699151867,3.59281272,34041.0,34040.0,0.76417303]
[1625699152243,3.59281272,34041.0,34040.0,0.41929929]
[1625699152543,3.59281272,34041.0,34040.0,0.76417725]
[1625699152693,3.59281272,34041.0,34040.0,0.41929929]
[1625699152994,3.59281272,34041.0,34040.0,0.76417879]
[1625699153221,3.59281272,34041.0,34040.0,0.41929929]
[1625699154347,3.59281272,34041.0,34040.0,0.24686277]
[1625699154574,4.93342897,34041.0,34040.0,0.24686277]
[1625699155175,5.26310897,34041.0,34040.0,0.24686277]
[1625699155326,5.26310897,34041.0,34040.0,0.24586277]
[1625699155777,5.50368441,34041.0,34040.0,0.24586277]
[1625699156074,7.00989167,34041.0,34040.0,0.24586277]
[1625699156529,7.00989167,34041.0,34040.0,0.00528733]
[1625699156978,7.00989167,34041.0,34039.0,0.00532144]
[1625699157278,0.81083088,34041.0,34040.0,0.00532159]
[1625699157428,5.15750612,34041.0,34035.0,0.001]
[1625699157579,6.99653554,34041.0,34035.0,0.001]
[1625699157729,6.18444067,34036.0,34035.0,0.001]
[1625699157879,6.66559155,34036.0,34035.0,0.001]
[1625699164490,6.66559155,34036.0,34030.0,0.002]
[1625699164789,4.66983599,34031.0,34030.0,0.002]
[1625699165767,4.91041143,34031.0,34030.0,0.002]
[1625699165916,5.15098687,34031.0,34030.0,0.002]
[1625699166068,6.64938544,34031.0,34030.0,0.002]
[1625699167267,6.64938544,34031.0,34030.0,0.001]
[1625699168319,7.14938544,34031.0,34030.0,0.001]
[1625699168771,6.64938544,34031.0,34030.0,0.001]
[1625699169069,7.14938544,34031.0,34030.0,0.001]
[1625699169370,6.64938544,34031.0,34030.0,0.001]
[1625699170419,7.14938544,34031.0,34030.0,0.001]
[1625699171772,4.0679,34027.0,34025.0,0.002]
[1625699171921,4.81563,34027.0,34025.0,0.002]
[1625699172072,4.64674721,34026.0,34025.0,0.002]
[1625699172224,4.81563,34027.0,34025.0,0.002]
[1625699172596,4.81563,34027.0,34011.0,1.02289781]
[1625699172746,0.057,34026.0,34012.0,0.1717495]
[1625699173047,0.49754966,34019.0,34011.0,1.02288371]
[1625699173197,0.057,34018.0,34011.0,1.02288371]
[1625699173496,0.057,34018.0,34012.0,0.17173496]
[1625699173797,0.72172632,34013.0,34012.0,0.17173496]
[1625699173958,0.77872632,34013.0,34011.0,1.02288481]
[1625699174397,0.77872632,34013.0,34011.0,0.67938702]
[1625699174546,0.77872632,34013.0,34011.0,0.17173614]
[1625699174698,0.77872632,34013.0,34010.0,0.17164291]
[1625699174999,0.77872632,34013.0,34009.0,0.51493339]
[1625699175147,0.77872632,34013.0,34008.0,0.51491624]
[1625699175897,0.24057544,34009.0,34008.0,0.51491624]
[1625699176500,0.24057544,34009.0,34008.0,0.520241]
[1625699176798,0.24057544,34009.0,34008.0,0.17163875]
[1625699176948,0.53863544,34009.0,34008.0,0.17163875]
[1625699177098,0.53863544,34009.0,34006.0,0.17154784]
[1625699177248,0.59563544,34009.0,34006.0,0.17154784]
[1625699177399,0.59563544,34009.0,34005.0,0.001]
[1625699177848,0.24057544,34006.0,34005.0,0.001]
[1625699178899,0.29757544,34006.0,34005.0,0.001]
[1625699179498,0.79388402,34006.0,34005.0,0.001]
[1625699179648,0.29757544,34006.0,34005.0,0.001]
[1625699180547,0.24057544,34006.0,34005.0,0.001]
[1625699180698,0.29757544,34006.0,34005.0,0.001]
[1625699182501,5.32107544,34006.0,34005.0,0.001]
[1625699183927,0.29757544,34006.0,34005.0,0.001]
[1625699189260,0.29857544,34006.0,34001.0,0.0021989]
[1625699190010,0.24057544,34002.0,34001.0,0.0021989]
[1625699190310,0.29757544,34002.0,34001.0,0.0021989]
[1625699190610,0.24057544,34002.0,34001.0,0.00751976]
[1625699191662,0.29757544,34002.0,34001.0,0.00751976]
[1625699192266,0.29757544,34002.0,34001.0,0.0021989]
[1625699192567,0.29757544,34002.0,34001.0,0.00752036]
[1625699192716,0.24057544,34002.0,34001.0,0.00752036]
[1625699192866,0.24057544,34002.0,34001.0,0.0021989]
[1625699193316,0.29757544,34002.0,34001.0,0.0021989]
[1625699193619,1.12908544,34002.0,33987.0,0.17094045]
[1625699193768,0.0021989,33999.0,33987.0,0.17094045]
[1625699193919,0.0021989,33999.0,33980.0,1.46752361]
[1625699193920,3.18716759,33988.0,33980.0,0.1]
[1625699194145,0.557,33987.0,33980.0,0.1]
[1625699194372,0.97902301,33981.0,33964.0,0.62355658]
[1625699194522,4.97879919,33981.0,33954.0,0.684216]
[1625699194667,4.97879919,33981.0,33892.0,5.1171203]
[1625699194668,0.1,33979.0,33956.0,0.171054]
[1625699194819,3.7913,33965.0,33956.0,0.171054]
[1625699194970,0.5,33964.0,33956.0,0.171054]
[1625699195120,0.2336,33958.0,33956.0,0.171054]
[1625699195272,0.557,33957.0,33945.0,0.08530515]
[1625699195420,0.557,33957.0,33944.0,0.60113535]
[1625699195569,1.557,33957.0,33944.0,0.08930446]
[1625699195871,0.5885,33957.0,33944.0,0.08930446]
[1625699196021,1.96230176,33945.0,33944.0,0.08313446]
[1625699196171,2.84197176,33945.0,33944.0,0.08313446]
[1625699196323,1.84197176,33945.0,33944.0,0.08313446]
[1625699196622,2.07717176,33945.0,33944.0,0.05153446]
[1625699196922,3.07717176,33945.0,33944.0,0.05153446]
[1625699197076,2.84197176,33945.0,33944.0,0.05153446]
[1625699197221,3.07557176,33945.0,33944.0,0.05153446]
[1625699197973,1.57557176,33945.0,33944.0,0.05153446]
[1625699198271,1.57557176,33945.0,33914.0,0.24057544]
[1625699198272,1.57557176,33945.0,33938.0,0.001]
[1625699198722,0.057,33944.0,33938.0,0.001]
[1625699198871,1.0,33942.0,33938.0,0.001]
[1625699199021,2.51857176,33945.0,33938.0,0.001]
[1625699199174,1.0,33942.0,33938.0,0.001]
[1625699199322,1.51857176,33945.0,33938.0,0.001]
[1625699199473,1.19590176,33945.0,33938.0,0.001]
[1625699200074,0.48115088,33939.0,33938.0,0.001]
[1625699201425,0.76958088,33939.0,33938.0,0.001]
[1625699202928,0.48115088,33939.0,33938.0,0.001]
[1625699206079,1.03815088,33939.0,33938.0,0.001]
[1625699206229,1.03815088,33939.0,33924.0,0.08498801]
[1625699206378,0.2336,33931.0,33924.0,0.08498801]
[1625699206528,0.557,33930.0,33914.0,1.52978419]
[1625699206978,1.0,33923.0,33914.0,1.52978419]
[1625699207128,4.3187,33915.0,33914.0,1.52978419]
[1625699207278,4.3187,33915.0,33898.0,0.9867]
[1625699207279,4.63153,33915.0,33904.0,0.25505821]
[1625699207578,4.63153,33915.0,33898.0,0.9867]
[1625699207881,4.63153,33915.0,33903.0,0.25506249]
[1625699208028,0.72172632,33904.0,33903.0,0.25506249]
[1625699208185,0.96688632,33904.0,33903.0,0.25506249]
[1625699208630,0.96688632,33904.0,33900.0,5.80976195]
[1625699208631,0.96688632,33904.0,33900.0,4.78951198]
[1625699210134,0.24057544,33901.0,33900.0,4.78951198]
[1625699210884,0.48115088,33904.0,33900.0,4.78951198]
[1625699211035,0.2336,33931.0,33900.0,5.00190198]